[Event "Early-Titled-Tuesday-Blitz-September-26-2023"]
[Site "Chess.com"]
[Date "2023.09.26"]
[Round "2"]
[White "leejunhyeok"]
[Black "Oleksandr_Bortnyk"]
[Result "1/2-1/2"]
[WhiteElo "2649"]
[BlackElo "3035"]
[TimeControl "180+1"]
[EndTime "8:20:42 PDT"]
[Termination "Game drawn - insufficient material"]

1. e4 {[%clk 0:03:00.9]} 1... Nf6 {[%clk 0:02:58.1]} 2. e5 {[%clk 0:02:58.6]}
2... Nd5 {[%clk 0:02:58.5]} 3. d4 {[%clk 0:02:59]} 3... d6 {[%clk 0:02:59]} 4.
c4 {[%clk 0:02:56.7]} 4... Nb6 {[%clk 0:02:59.2]} 5. exd6 {[%clk 0:02:56.6]}
5... exd6 {[%clk 0:03:00.1]} 6. Nc3 {[%clk 0:02:55]} 6... Be7 {[%clk 0:03:00.4]}
7. Nf3 {[%clk 0:02:54]} 7... O-O {[%clk 0:03:01.1]} 8. h3 {[%clk 0:02:52.9]}
8... Bf5 {[%clk 0:03:00.3]} 9. Bd3 {[%clk 0:02:51.9]} 9... Bxd3 {[%clk
0:03:00.2]} 10. Qxd3 {[%clk 0:02:52.8]} 10... Nc6 {[%clk 0:03:00.4]} 11. O-O
{[%clk 0:02:51.7]} 11... Nb4 {[%clk 0:02:58.1]} 12. Qe2 {[%clk 0:02:51.1]} 12...
Re8 {[%clk 0:02:55.8]} 13. a3 {[%clk 0:02:50.3]} 13... Bf6 {[%clk 0:02:51.2]}
14. Qd1 {[%clk 0:02:48.2]} 14... Nc6 {[%clk 0:02:50.5]} 15. b3 {[%clk
0:02:43.1]} 15... a5 {[%clk 0:02:48.8]} 16. Qd3 {[%clk 0:02:40.5]} 16... a4
{[%clk 0:02:36]} 17. b4 {[%clk 0:02:40]} 17... d5 {[%clk 0:02:07.3]} 18. c5
{[%clk 0:02:15.3]} 18... Nc4 {[%clk 0:02:07.2]} 19. Bf4 {[%clk 0:02:04.3]} 19...
b6 {[%clk 0:02:04]} 20. Rfc1 {[%clk 0:01:59.6]} 20... bxc5 {[%clk 0:01:56.7]}
21. bxc5 {[%clk 0:01:51.8]} 21... N6a5 {[%clk 0:01:43.9]} 22. Nxa4 {[%clk
0:01:41.3]} 22... Qd7 {[%clk 0:01:44.1]} 23. c6 {[%clk 0:01:41.5]} 23... Qxc6
{[%clk 0:01:42.7]} 24. Nc5 {[%clk 0:01:41.7]} 24... Nb2 {[%clk 0:01:32.2]} 25.
Qf5 {[%clk 0:01:33.7]} 25... Nac4 {[%clk 0:01:30.7]} 26. Bg5 {[%clk 0:01:15.6]}
26... Bxd4 {[%clk 0:01:27.2]} 27. Nd3 {[%clk 0:00:48.7]} 27... Nxd3 {[%clk
0:01:15.9]} 28. Nxd4 {[%clk 0:00:25.8]} 28... Qg6 {[%clk 0:01:16.2]} 29. Rd1
{[%clk 0:00:25.8]} 29... Ncb2 {[%clk 0:01:06.3]} 30. Rd2 {[%clk 0:00:23]} 30...
c5 {[%clk 0:01:06.3]} 31. Qxg6 {[%clk 0:00:22.7]} 31... hxg6 {[%clk 0:01:07.2]}
32. Nb5 {[%clk 0:00:21.6]} 32... Rab8 {[%clk 0:01:02.6]} 33. Nc7 {[%clk
0:00:20.5]} 33... Re5 {[%clk 0:01:03.3]} 34. f4 {[%clk 0:00:20.3]} 34... Rxg5
{[%clk 0:00:59.2]} 35. fxg5 {[%clk 0:00:20.1]} 35... d4 {[%clk 0:00:59.9]} 36.
Na6 {[%clk 0:00:18.8]} 36... Rc8 {[%clk 0:00:46]} 37. Rb1 {[%clk 0:00:08.1]}
37... c4 {[%clk 0:00:45.8]} 38. Nb4 {[%clk 0:00:06.1]} 38... c3 {[%clk
0:00:38.9]} 39. Rxd3 {[%clk 0:00:04.7]} 39... Nxd3 {[%clk 0:00:37.5]} 40. Nxd3
{[%clk 0:00:04.7]} 40... c2 {[%clk 0:00:35.8]} 41. Rc1 {[%clk 0:00:05.1]} 41...
Rc3 {[%clk 0:00:36.7]} 42. Ne1 {[%clk 0:00:04.7]} 42... d3 {[%clk 0:00:37.6]}
43. Nxd3 {[%clk 0:00:05.1]} 43... Rxd3 {[%clk 0:00:38.5]} 44. Rxc2 {[%clk
0:00:05.7]} 44... Rxa3 {[%clk 0:00:39.2]} 45. h4 {[%clk 0:00:05.3]} 45... f5
{[%clk 0:00:35]} 46. gxf6 {[%clk 0:00:05.1]} 46... gxf6 {[%clk 0:00:35.9]} 47.
Kh2 {[%clk 0:00:05.6]} 47... Kg7 {[%clk 0:00:36]} 48. g3 {[%clk 0:00:06]} 48...
f5 {[%clk 0:00:35.7]} 49. Rf2 {[%clk 0:00:06.5]} 49... Kh6 {[%clk 0:00:36.1]}
50. Kg2 {[%clk 0:00:07]} 50... Kh5 {[%clk 0:00:36.4]} 51. Kh3 {[%clk 0:00:06.8]}
51... Ra1 {[%clk 0:00:36.2]} 52. Rf4 {[%clk 0:00:05.8]} 52... Ra2 {[%clk
0:00:35.9]} 53. Rf3 {[%clk 0:00:05.5]} 53... Rb2 {[%clk 0:00:34.2]} 54. Rf4
{[%clk 0:00:05.7]} 54... Rb1 {[%clk 0:00:34.6]} 55. Rf3 {[%clk 0:00:05.5]} 55...
Rh1+ {[%clk 0:00:35.2]} 56. Kg2 {[%clk 0:00:05.8]} 56... Rc1 {[%clk 0:00:36.1]}
57. Rf4 {[%clk 0:00:06.2]} 57... Rc2+ {[%clk 0:00:35.5]} 58. Kh3 {[%clk
0:00:06.5]} 58... Rc3 {[%clk 0:00:36.4]} 59. Rd4 {[%clk 0:00:06.3]} 59... Kh6
{[%clk 0:00:36.3]} 60. Rf4 {[%clk 0:00:06.2]} 60... Rc5 {[%clk 0:00:35.5]} 61.
Rb4 {[%clk 0:00:06.3]} 61... Ra5 {[%clk 0:00:34.5]} 62. Rc4 {[%clk 0:00:06.1]}
62... Rb5 {[%clk 0:00:23.2]} 63. Ra4 {[%clk 0:00:06]} 63... Rb6 {[%clk
0:00:23.7]} 64. Rc4 {[%clk 0:00:05.8]} 64... Kg7 {[%clk 0:00:24.3]} 65. Ra4
{[%clk 0:00:05.2]} 65... Kf6 {[%clk 0:00:25]} 66. Rc4 {[%clk 0:00:05.5]} 66...
Ra6 {[%clk 0:00:23.9]} 67. Rb4 {[%clk 0:00:05.3]} 67... Rc6 {[%clk 0:00:22.9]}
68. Ra4 {[%clk 0:00:05.5]} 68... Rb6 {[%clk 0:00:23.5]} 69. Rc4 {[%clk
0:00:05.5]} 69... Rb3 {[%clk 0:00:24.3]} 70. Ra4 {[%clk 0:00:05.5]} 70... Ke5
{[%clk 0:00:23.9]} 71. Rc4 {[%clk 0:00:05.1]} 71... Rb1 {[%clk 0:00:21.4]} 72.
Ra4 {[%clk 0:00:04.9]} 72... Re1 {[%clk 0:00:18.9]} 73. Kg2 {[%clk 0:00:04.7]}
73... Re2+ {[%clk 0:00:17.9]} 74. Kf3 {[%clk 0:00:04.3]} 74... Rb2 {[%clk
0:00:16.9]} 75. Ra5+ {[%clk 0:00:04.2]} 75... Kf6 {[%clk 0:00:17.5]} 76. Ra6+
{[%clk 0:00:04.4]} 76... Kg7 {[%clk 0:00:18.1]} 77. Ra7+ {[%clk 0:00:04.4]}
77... Kh6 {[%clk 0:00:18.7]} 78. Ra4 {[%clk 0:00:04.9]} 78... Kh5 {[%clk
0:00:17.6]} 79. Rc4 {[%clk 0:00:04.6]} 79... Ra2 {[%clk 0:00:16.9]} 80. Rb4
{[%clk 0:00:04.3]} 80... Ra3+ {[%clk 0:00:11.5]} 81. Kg2 {[%clk 0:00:04.2]}
81... Kh6 {[%clk 0:00:12.2]} 82. Rc4 {[%clk 0:00:03.8]} 82... Rb3 {[%clk
0:00:12.4]} 83. Ra4 {[%clk 0:00:03.9]} 83... Kg7 {[%clk 0:00:13.3]} 84. Kf2
{[%clk 0:00:04.1]} 84... Rc3 {[%clk 0:00:13.4]} 85. Rb4 {[%clk 0:00:04.3]} 85...
Kf6 {[%clk 0:00:13.5]} 86. Kg2 {[%clk 0:00:04.8]} 86... Rc2+ {[%clk 0:00:12.9]}
87. Kf3 {[%clk 0:00:04.9]} 87... Rc6 {[%clk 0:00:13.8]} 88. Ra4 {[%clk 0:00:05]}
88... Rb6 {[%clk 0:00:14.1]} 89. Rc4 {[%clk 0:00:05.1]} 89... Ke5 {[%clk
0:00:14.6]} 90. Rc5+ {[%clk 0:00:04.9]} 90... Kd4 {[%clk 0:00:15]} 91. Ra5
{[%clk 0:00:04.7]} 91... Rb1 {[%clk 0:00:09.6]} 92. Ra4+ {[%clk 0:00:04.3]}
92... Ke5 {[%clk 0:00:09.5]} 93. Ra5+ {[%clk 0:00:04.8]} 93... Kf6 {[%clk
0:00:10.1]} 94. Ra6+ {[%clk 0:00:05.3]} 94... Kg7 {[%clk 0:00:10.8]} 95. Ra4
{[%clk 0:00:05.2]} 95... Kh6 {[%clk 0:00:10.1]} 96. Kg2 {[%clk 0:00:05]} 96...
g5 {[%clk 0:00:10]} 97. hxg5+ {[%clk 0:00:05.1]} 97... Kxg5 {[%clk 0:00:10.9]}
98. Rc4 {[%clk 0:00:04.6]} 98... Rb2+ {[%clk 0:00:10.7]} 99. Kf3 {[%clk
0:00:05]} 99... Rb3+ {[%clk 0:00:11.5]} 100. Kg2 {[%clk 0:00:05.2]} 100... Ra3
{[%clk 0:00:12.1]} 101. Kf2 {[%clk 0:00:05.5]} 101... Ra2+ {[%clk 0:00:12.5]}
102. Kf3 {[%clk 0:00:05.6]} 102... Ra5 {[%clk 0:00:11.9]} 103. Rb4 {[%clk
0:00:05.7]} 103... Kf6 {[%clk 0:00:11.5]} 104. Kf4 {[%clk 0:00:05.6]} 104... Ra6
{[%clk 0:00:11.3]} 105. Rc4 {[%clk 0:00:05.8]} 105... Re6 {[%clk 0:00:10.5]}
106. Rd4 {[%clk 0:00:05.5]} 106... Kg6 {[%clk 0:00:10.8]} 107. g4 {[%clk
0:00:05.6]} 107... fxg4 {[%clk 0:00:10.9]} 108. Kxg4 {[%clk 0:00:06.5]} 108...
Re1 {[%clk 0:00:11.3]} 109. Rd6+ {[%clk 0:00:06.5]} 109... Kf7 {[%clk
0:00:11.8]} 110. Kf5 {[%clk 0:00:06.7]} 110... Ke7 {[%clk 0:00:12.5]} 111. Ra6
{[%clk 0:00:06.8]} 111... Rf1+ {[%clk 0:00:12.9]} 112. Ke5 {[%clk 0:00:07]}
112... Re1+ {[%clk 0:00:13.5]} 113. Kf5 {[%clk 0:00:07.3]} 113... Rh1 {[%clk
0:00:14.4]} 114. Ke5 {[%clk 0:00:07.1]} 114... Rh5+ {[%clk 0:00:14.2]} 115. Kf4
{[%clk 0:00:07.6]} 115... Rd5 {[%clk 0:00:14.4]} 116. Ke4 {[%clk 0:00:07.9]}
116... Rd6 {[%clk 0:00:14.9]} 117. Rxd6 {[%clk 0:00:07.8]} 117... Kxd6 {[%clk
0:00:15.8]} 1/2-1/2

[Event "Early-Titled-Tuesday-Blitz-September-26-2023"]
[Site "Chess.com"]
[Date "2023.09.26"]
[Round "3"]
[White "Grossboss19"]
[Black "sorch29"]
[Result "1-0"]
[WhiteElo "2515"]
[BlackElo "2317"]
[TimeControl "180+1"]
[EndTime "8:22:29 PDT"]
[Termination "Grossboss19 won by resignation"]

1. d4 {[%clk 0:03:00.9]} 1... Nf6 {[%clk 0:02:59.8]} 2. Nc3 {[%clk 0:02:59.5]}
2... g6 {[%clk 0:03:00.2]} 3. e4 {[%clk 0:02:58.7]} 3... d6 {[%clk 0:03:01.1]}
4. Be3 {[%clk 0:02:55.2]} 4... e5 {[%clk 0:03:00.5]} 5. dxe5 {[%clk 0:02:52]}
5... dxe5 {[%clk 0:02:59.3]} 6. Qxd8+ {[%clk 0:02:52.9]} 6... Kxd8 {[%clk
0:02:59.7]} 7. O-O-O+ {[%clk 0:02:53.6]} 7... Nbd7 {[%clk 0:02:59.5]} 8. Nf3
{[%clk 0:02:50]} 8... c6 {[%clk 0:02:57]} 9. Nxe5 {[%clk 0:02:46.4]} 9... Ke8
{[%clk 0:02:53]} 10. Nxd7 {[%clk 0:02:38.3]} 10... Bxd7 {[%clk 0:02:53.2]} 11.
f3 {[%clk 0:02:37.6]} 11... Bg7 {[%clk 0:02:49]} 12. Bc4 {[%clk 0:02:33.9]}
12... Nh5 {[%clk 0:02:44.6]} 13. Bxf7+ {[%clk 0:02:24.1]} 1-0

[Event "Early-Titled-Tuesday-Blitz-September-26-2023"]
[Site "Chess.com"]
[Date "2023.09.26"]
[Round "3"]
[White "DanielNaroditsky"]
[Black "DonkyDonkyDonkey"]
[Result "1/2-1/2"]
[WhiteElo "3149"]
[BlackElo "2737"]
[TimeControl "180+1"]
[EndTime "8:24:57 PDT"]
[Termination "Game drawn by agreement"]

1. e4 {[%clk 0:03:00.9]} 1... c5 {[%clk 0:02:58.2]} 2. Nf3 {[%clk 0:02:57.4]}
2... d6 {[%clk 0:02:58.5]} 3. Bb5+ {[%clk 0:02:57.1]} 3... Bd7 {[%clk
0:02:57.9]} 4. Bxd7+ {[%clk 0:02:56]} 4... Qxd7 {[%clk 0:02:58.8]} 5. O-O {[%clk
0:02:56.4]} 5... Nc6 {[%clk 0:02:57]} 6. d3 {[%clk 0:02:42.9]} 6... Nf6 {[%clk
0:02:56]} 7. Nc3 {[%clk 0:02:43.7]} 7... e5 {[%clk 0:02:49.9]} 8. Bg5 {[%clk
0:02:39.3]} 8... Be7 {[%clk 0:02:50]} 9. Nd2 {[%clk 0:02:36.3]} 9... h6 {[%clk
0:02:47.6]} 10. Bxf6 {[%clk 0:02:34.4]} 10... Bxf6 {[%clk 0:02:48.5]} 11. Nc4
{[%clk 0:02:28.5]} 11... O-O {[%clk 0:02:35.6]} 12. Ne3 {[%clk 0:02:24.2]} 12...
Bg5 {[%clk 0:02:34.2]} 13. Ncd5 {[%clk 0:02:20.1]} 13... Bxe3 {[%clk 0:02:18.3]}
14. Nxe3 {[%clk 0:02:11.9]} 14... Ne7 {[%clk 0:02:18.5]} 15. f4 {[%clk
0:01:59.6]} 15... f5 {[%clk 0:02:06.9]} 16. exf5 {[%clk 0:01:46.2]} 16... Nxf5
{[%clk 0:01:57]} 17. Qg4 {[%clk 0:01:45.1]} 17... Qf7 {[%clk 0:01:31.1]} 18.
Nxf5 {[%clk 0:01:28]} 18... Qxf5 {[%clk 0:01:30.9]} 19. Qxf5 {[%clk 0:01:27.7]}
19... Rxf5 {[%clk 0:01:31.8]} 20. fxe5 {[%clk 0:01:23]} 20... Rxe5 {[%clk
0:01:32.7]} 1/2-1/2

[Event "Early-Titled-Tuesday-Blitz-September-26-2023"]
[Site "Chess.com"]
[Date "2023.09.26"]
[Round "3"]
[White "Manukyan_Artak"]
[Black "giomar27"]
[Result "0-1"]
[WhiteElo "2407"]
[BlackElo "2262"]
[TimeControl "180+1"]
[EndTime "8:25:04 PDT"]
[Termination "giomar27 won by resignation"]

1. e4 {[%clk 0:02:57]} 1... e5 {[%clk 0:03:00.1]} 2. Nf3 {[%clk 0:02:56.5]} 2...
d5 {[%clk 0:03:00.3]} 3. Nxe5 {[%clk 0:02:56.1]} 3... Bd6 {[%clk 0:03:00.1]} 4.
d4 {[%clk 0:02:55.5]} 4... dxe4 {[%clk 0:03:00.7]} 5. Nc4 {[%clk 0:02:55.4]}
5... Nf6 {[%clk 0:03:01.1]} 6. Bg5 {[%clk 0:02:53.6]} 6... O-O {[%clk
0:02:59.9]} 7. Nc3 {[%clk 0:02:52]} 7... Re8 {[%clk 0:02:59.5]} 8. Be2 {[%clk
0:02:43.6]} 8... Nc6 {[%clk 0:02:59.4]} 9. O-O {[%clk 0:02:39.9]} 9... h6 {[%clk
0:02:58.7]} 10. Nxd6 {[%clk 0:02:37.9]} 10... cxd6 {[%clk 0:02:52.8]} 11. Bh4
{[%clk 0:02:29.3]} 11... g5 {[%clk 0:02:51.9]} 12. Bg3 {[%clk 0:02:29.3]} 12...
d5 {[%clk 0:02:47.2]} 13. Nb5 {[%clk 0:02:29]} 13... Re7 {[%clk 0:02:41.1]} 14.
h4 {[%clk 0:02:07.5]} 14... a6 {[%clk 0:02:39.6]} 15. Na3 {[%clk 0:02:06.3]}
15... g4 {[%clk 0:02:37.5]} 16. c3 {[%clk 0:02:00.6]} 16... Be6 {[%clk
0:02:28.9]} 17. Nc2 {[%clk 0:02:00.3]} 17... Qd7 {[%clk 0:02:27.5]} 18. Ne3
{[%clk 0:01:59.5]} 18... Kh7 {[%clk 0:02:24.5]} 19. b4 {[%clk 0:01:57.7]} 19...
Rg8 {[%clk 0:02:24.6]} 20. a4 {[%clk 0:01:56]} 20... Nh5 {[%clk 0:02:21.9]} 21.
Qd2 {[%clk 0:01:43.2]} 21... f5 {[%clk 0:02:21]} 22. Nc2 {[%clk 0:01:43]} 22...
Rf7 {[%clk 0:02:14.5]} 23. Bf4 {[%clk 0:01:42.4]} 23... Nxf4 {[%clk 0:02:09.6]}
24. Qxf4 {[%clk 0:01:41.2]} 24... Ne7 {[%clk 0:02:10.3]} 25. h5 {[%clk
0:01:37.3]} 25... Rg5 {[%clk 0:02:10.1]} 26. g3 {[%clk 0:01:36.4]} 26... Rxh5
{[%clk 0:02:09.6]} 27. Kg2 {[%clk 0:01:36.7]} 27... Ng6 {[%clk 0:02:09.2]} 28.
Qd2 {[%clk 0:01:35]} 28... f4 {[%clk 0:02:09]} 29. gxf4 {[%clk 0:01:20.9]} 29...
Nxf4+ {[%clk 0:02:09.9]} 30. Kg1 {[%clk 0:01:20.5]} 30... Qe7 {[%clk 0:02:03.7]}
0-1

[Event "Early-Titled-Tuesday-Blitz-September-26-2023"]
[Site "Chess.com"]
[Date "2023.09.26"]
[Round "3"]
[White "scarabee43"]
[Black "RandomNoob04"]
[Result "0-1"]
[WhiteElo "2779"]
[BlackElo "2608"]
[TimeControl "180+1"]
[EndTime "8:25:08 PDT"]
[Termination "RandomNoob04 won by resignation"]

1. d4 {[%clk 0:03:00.9]} 1... Nf6 {[%clk 0:03:00.2]} 2. c4 {[%clk 0:03:01.2]}
2... c5 {[%clk 0:03:00.5]} 3. d5 {[%clk 0:03:00.3]} 3... b5 {[%clk 0:03:00.7]}
4. cxb5 {[%clk 0:03:00]} 4... a6 {[%clk 0:03:01.4]} 5. bxa6 {[%clk 0:03:00.3]}
5... g6 {[%clk 0:03:02.1]} 6. Nc3 {[%clk 0:03:00.4]} 6... Bg7 {[%clk 0:03:02.7]}
7. e4 {[%clk 0:03:00.1]} 7... O-O {[%clk 0:03:03.4]} 8. Nf3 {[%clk 0:02:58.2]}
8... Qa5 {[%clk 0:03:04]} 9. Bd3 {[%clk 0:02:53.8]} 9... Nxd5 {[%clk 0:03:03.6]}
10. exd5 {[%clk 0:02:47.4]} 10... Bxc3+ {[%clk 0:03:04.1]} 11. bxc3 {[%clk
0:02:41]} 11... Qxc3+ {[%clk 0:03:05]} 12. Qd2 {[%clk 0:02:41.4]} 12... Qxa1
{[%clk 0:03:04.2]} 13. O-O {[%clk 0:02:41.5]} 13... Bxa6 {[%clk 0:02:48.5]} 14.
Bb2 {[%clk 0:02:19.5]} 14... Qxa2 {[%clk 0:02:47.6]} 15. Qc3 {[%clk 0:02:13.5]}
15... f6 {[%clk 0:02:46.5]} 16. d6 {[%clk 0:01:57.8]} 16... e6 {[%clk
0:02:12.9]} 17. Bb1 {[%clk 0:01:41.4]} 17... Qc4 {[%clk 0:02:10.4]} 18. Qxc4
{[%clk 0:01:36.4]} 18... Bxc4 {[%clk 0:02:11.3]} 19. Rc1 {[%clk 0:01:36.5]}
19... Bd5 {[%clk 0:02:10.8]} 20. Rxc5 {[%clk 0:01:33.7]} 20... Na6 {[%clk
0:02:08.1]} 21. Rc1 {[%clk 0:01:32.7]} 21... Rfc8 {[%clk 0:01:59.6]} 22. Re1
{[%clk 0:01:29.1]} 22... Kf7 {[%clk 0:01:57.6]} 23. h4 {[%clk 0:01:24.7]} 23...
Rab8 {[%clk 0:01:56.6]} 24. Ba1 {[%clk 0:01:22.4]} 24... Nb4 {[%clk 0:01:54.2]}
25. Nh2 {[%clk 0:01:18.5]} 25... Nc2 {[%clk 0:01:46]} 26. Bxc2 {[%clk
0:01:17.8]} 26... Rxc2 {[%clk 0:01:46.9]} 27. Ng4 {[%clk 0:01:18]} 27... e5
{[%clk 0:01:46.1]} 28. f4 {[%clk 0:01:16.9]} 28... Rxg2+ {[%clk 0:01:45.5]} 0-1

[Event "Early-Titled-Tuesday-Blitz-September-26-2023"]
[Site "Chess.com"]
[Date "2023.09.26"]
[Round "3"]
[White "Maxfan2008"]
[Black "lrestevez"]
[Result "1-0"]
[WhiteElo "2546"]
[BlackElo "2213"]
[TimeControl "180+1"]
[EndTime "8:25:18 PDT"]
[Termination "Maxfan2008 won by resignation"]

1. d4 {[%clk 0:03:00.9]} 1... Nf6 {[%clk 0:02:09.4]} 2. c4 {[%clk 0:03:00.3]}
2... e6 {[%clk 0:02:10]} 3. Nc3 {[%clk 0:03:00]} 3... Be7 {[%clk 0:02:10.8]} 4.
e4 {[%clk 0:02:59.8]} 4... O-O {[%clk 0:02:11.6]} 5. e5 {[%clk 0:02:59.8]} 5...
Ne8 {[%clk 0:02:11.6]} 6. Bd3 {[%clk 0:02:59.6]} 6... g6 {[%clk 0:02:10.6]} 7.
Bh6 {[%clk 0:02:58]} 7... Ng7 {[%clk 0:02:10.1]} 8. Nf3 {[%clk 0:02:58.1]} 8...
d5 {[%clk 0:02:09.9]} 9. h4 {[%clk 0:02:47.6]} 9... c5 {[%clk 0:02:05.9]} 10.
dxc5 {[%clk 0:02:43.2]} 10... dxc4 {[%clk 0:02:03.9]} 11. Bxc4 {[%clk
0:02:41.9]} 11... Qxd1+ {[%clk 0:02:03.6]} 12. Rxd1 {[%clk 0:02:42.8]} 12...
Bxc5 {[%clk 0:02:03.3]} 13. Ne4 {[%clk 0:02:40.1]} 13... Bb4+ {[%clk 0:02:01.4]}
14. Ke2 {[%clk 0:02:39.1]} 14... Be7 {[%clk 0:01:59.5]} 15. Bg5 {[%clk
0:02:33.2]} 15... Nc6 {[%clk 0:01:45.6]} 16. Bxe7 {[%clk 0:02:08.3]} 16... Nxe7
{[%clk 0:01:46.5]} 17. Nf6+ {[%clk 0:02:08.6]} 17... Kh8 {[%clk 0:01:45.7]} 18.
Ng5 {[%clk 0:02:09]} 18... Nh5 {[%clk 0:01:11.2]} 19. Ngxh7 {[%clk 0:01:50.5]}
19... Kg7 {[%clk 0:00:58.5]} 20. Nxf8 {[%clk 0:01:45.4]} 20... Kxf8 {[%clk
0:00:54.9]} 21. Rd8+ {[%clk 0:01:36.4]} 1-0

[Event "Early-Titled-Tuesday-Blitz-September-26-2023"]
[Site "Chess.com"]
[Date "2023.09.26"]
[Round "3"]
[White "vovachesss"]
[Black "chezzgirl04"]
[Result "1-0"]
[WhiteElo "2738"]
[BlackElo "2159"]
[TimeControl "180+1"]
[EndTime "8:25:22 PDT"]
[Termination "vovachesss won by resignation"]

1. e4 {[%clk 0:03:00.9]} 1... e5 {[%clk 0:02:59.9]} 2. f4 {[%clk 0:03:00.1]}
2... exf4 {[%clk 0:02:59.3]} 3. Bc4 {[%clk 0:02:59.7]} 3... d5 {[%clk
0:02:58.5]} 4. Bxd5 {[%clk 0:02:59.1]} 4... Nf6 {[%clk 0:02:57.8]} 5. Nc3 {[%clk
0:02:52.5]} 5... c6 {[%clk 0:02:53.8]} 6. Bb3 {[%clk 0:02:50.8]} 6... Bc5 {[%clk
0:02:53.6]} 7. Nf3 {[%clk 0:02:50]} 7... Bg4 {[%clk 0:02:41]} 8. h3 {[%clk
0:02:40.8]} 8... Bxf3 {[%clk 0:02:08.6]} 9. Qxf3 {[%clk 0:02:41.7]} 9... O-O
{[%clk 0:02:04.5]} 10. d3 {[%clk 0:02:41]} 10... Nh5 {[%clk 0:02:01.6]} 11. Qxh5
{[%clk 0:02:37.8]} 11... Bd4 {[%clk 0:01:42.9]} 12. Bxf4 {[%clk 0:02:35.3]}
12... Na6 {[%clk 0:01:39.6]} 13. O-O-O {[%clk 0:02:28.2]} 13... Qe7 {[%clk
0:01:34.5]} 14. Rhf1 {[%clk 0:02:25.2]} 14... Bxc3 {[%clk 0:01:30.1]} 15. bxc3
{[%clk 0:02:24.9]} 15... Qa3+ {[%clk 0:01:30.7]} 16. Kb1 {[%clk 0:02:16.7]}
16... b5 {[%clk 0:01:16.8]} 17. Bg5 {[%clk 0:01:54]} 17... Nc5 {[%clk
0:00:55.9]} 18. Be7 {[%clk 0:01:50.1]} 1-0

[Event "Early-Titled-Tuesday-Blitz-September-26-2023"]
[Site "Chess.com"]
[Date "2023.09.26"]
[Round "3"]
[White "drdaro"]
[Black "andrzej"]
[Result "0-1"]
[WhiteElo "2268"]
[BlackElo "2463"]
[TimeControl "180+1"]
[EndTime "8:25:22 PDT"]
[Termination "andrzej won by resignation"]

1. Nf3 {[%clk 0:03:00.9]} 1... d5 {[%clk 0:02:59.5]} 2. c4 {[%clk 0:02:59.2]}
2... e6 {[%clk 0:02:59.5]} 3. e3 {[%clk 0:02:54.5]} 3... Nf6 {[%clk 0:02:58.8]}
4. b3 {[%clk 0:02:54.3]} 4... Nbd7 {[%clk 0:02:51.9]} 5. Bb2 {[%clk 0:02:54.2]}
5... Bd6 {[%clk 0:02:51.1]} 6. d4 {[%clk 0:02:53.8]} 6... dxc4 {[%clk
0:02:32.7]} 7. bxc4 {[%clk 0:02:53.5]} 7... c5 {[%clk 0:02:33]} 8. Nc3 {[%clk
0:02:50.9]} 8... cxd4 {[%clk 0:02:28]} 9. exd4 {[%clk 0:02:50.4]} 9... O-O
{[%clk 0:02:27.5]} 10. Bd3 {[%clk 0:02:50.2]} 10... e5 {[%clk 0:02:24.8]} 11.
O-O {[%clk 0:02:46.3]} 11... exd4 {[%clk 0:02:24.5]} 12. Nxd4 {[%clk 0:02:46.9]}
12... Nc5 {[%clk 0:02:24.2]} 13. Bc2 {[%clk 0:02:44.1]} 13... a6 {[%clk
0:01:59.5]} 14. Qf3 {[%clk 0:02:39.7]} 14... Bxh2+ {[%clk 0:01:50]} 15. Kxh2
{[%clk 0:02:36.5]} 15... Qxd4 {[%clk 0:01:46.9]} 16. Rh1 {[%clk 0:02:27]} 16...
Bg4 {[%clk 0:01:21.9]} 17. Qg3 {[%clk 0:02:19.2]} 17... Bh5 {[%clk 0:01:21.3]}
18. Kg1 {[%clk 0:02:17.2]} 18... Bg6 {[%clk 0:01:18.8]} 19. Rh4 {[%clk
0:02:11.4]} 19... Qd2 {[%clk 0:01:09.4]} 20. Bxg6 {[%clk 0:02:07.7]} 20... fxg6
{[%clk 0:01:05.4]} 21. Ba3 {[%clk 0:02:08.2]} 21... Rac8 {[%clk 0:00:56]} 22.
Rd1 {[%clk 0:02:05.8]} 22... Qc2 {[%clk 0:00:55.1]} 23. Nd5 {[%clk 0:01:44.6]}
23... Qxd1+ {[%clk 0:00:53.9]} 0-1

[Event "Early-Titled-Tuesday-Blitz-September-26-2023"]
[Site "Chess.com"]
[Date "2023.09.26"]
[Round "3"]
[White "viktorskliarov"]
[Black "CalinGheorghiu"]
[Result "1-0"]
[WhiteElo "2656"]
[BlackElo "2360"]
[TimeControl "180+1"]
[EndTime "8:25:31 PDT"]
[Termination "viktorskliarov won by resignation"]

1. e4 {[%clk 0:03:00.9]} 1... c5 {[%clk 0:02:59.3]} 2. Nf3 {[%clk 0:03:01]} 2...
d6 {[%clk 0:02:58.9]} 3. d4 {[%clk 0:03:01.2]} 3... cxd4 {[%clk 0:02:59.3]} 4.
Qxd4 {[%clk 0:03:02.1]} 4... Nc6 {[%clk 0:02:58.2]} 5. Bb5 {[%clk 0:03:01.9]}
5... Bd7 {[%clk 0:02:57.9]} 6. Bxc6 {[%clk 0:03:02]} 6... Bxc6 {[%clk
0:02:57.8]} 7. Nc3 {[%clk 0:03:02.3]} 7... Nf6 {[%clk 0:02:58.2]} 8. Bg5 {[%clk
0:03:02.4]} 8... e6 {[%clk 0:02:58.7]} 9. O-O-O {[%clk 0:03:02.3]} 9... Be7
{[%clk 0:02:58.2]} 10. Rhe1 {[%clk 0:03:03]} 10... O-O {[%clk 0:02:55.8]} 11.
Kb1 {[%clk 0:03:03.2]} 11... Qa5 {[%clk 0:02:33.2]} 12. Qd2 {[%clk 0:03:02.6]}
12... Rfd8 {[%clk 0:02:13.4]} 13. Nd4 {[%clk 0:03:00.6]} 13... Rac8 {[%clk
0:01:57.2]} 14. f3 {[%clk 0:02:54.3]} 14... Be8 {[%clk 0:00:58]} 15. Nd5 {[%clk
0:02:20.3]} 15... Qxd2 {[%clk 0:00:56.4]} 16. Nxe7+ {[%clk 0:02:19.9]} 16... Kf8
{[%clk 0:00:57]} 17. Bxd2 {[%clk 0:02:20.5]} 17... Kxe7 {[%clk 0:00:56.2]} 18.
e5 {[%clk 0:02:21.1]} 18... Nd5 {[%clk 0:00:50.1]} 19. Bg5+ {[%clk 0:02:08.3]}
19... f6 {[%clk 0:00:44.4]} 20. exf6+ {[%clk 0:02:08.1]} 20... gxf6 {[%clk
0:00:42.9]} 21. Nxe6 {[%clk 0:01:58.4]} 1-0